Workbook

Sheet Intro

Sheet Annual Compliance ->

Sheet WAPC Inputs
A1: Cell colour meanings
B2: Input cell
B3: Calculation cell
B4: WAPC Compliance Inputs
B6: Model start financial year (t-1) | C6: ='Compliance Summary'!C4-1 -> 2024
B7: Forecast December Quarter CPI | C7: 0.041
B9: Prices in nbn's Pricing Roadmap | E9: =$C$6 -> 2024 | F9: =$E$9+1 -> 2025 | H9: Applicable Individual Price Control | I9: Percentage Tariff Change | J9: Individual Price Control Compliance Status
B10: Roadmap table | C10: Tariff List | D10: Side Constraint Identifier
B11: 1.1 Flat-Rate Offers | C11: AVC TC-4 100/20 Mbps | D11: Other fixed line and fixed wireless TC-4 | E11: 55 | F11: 57.22 | H11: =IFERROR(VLOOKUP(D11,'Compliance Summary'!$B$11:$C$15,2,0),"n/a") -> 0.05 | I11: =IFERROR(F11/E11-1,0) -> 0.04036363636 | J11: =IF(I11<=H11,"Compliant","Not Compliant") -> Compliant
B12: 1.1 Flat-Rate Offers | C12: AVC TC-4 100/40 Mbps | D12: Other fixed line and fixed wireless TC-4 | E12: 58 | F12: 60.22 | H12: =IFERROR(VLOOKUP(D12,'Compliance Summary'!$B$11:$C$15,2,0),"n/a") -> 0.05 | I12: =IFERROR(F12/E12-1,0) -> 0.03827586207 | J12: =IF(I12<=H12,"Compliant","Not Compliant") -> Compliant
B13: 1.1 Flat-Rate Offers | C13: AVC TC-4 250/25 Mbps | D13: Other fixed line and fixed wireless TC-4 | E13: 60 | F13: 62.22 | H13: =IFERROR(VLOOKUP(D13,'Compliance Summary'!$B$11:$C$15,2,0),"n/a") -> 0.05 | I13: 0.037 | J13: Compliant
B14: 1.1 Flat-Rate Offers | C14: AVC TC-4 250/100 Mbps | D14: Other fixed line and fixed wireless TC-4 | E14: 100 | F14: 75 | H14: =IFERROR(VLOOKUP(D14,'Compliance Summary'!$B$11:$C$15,2,0),"n/a") -> 0.05 | I14: -0.25 | J14: Compliant
B15: 1.1 Flat-Rate Offers | C15: AVC TC-4 500/200 Mbps | D15: Other fixed line and fixed wireless TC-4 | E15: 160 | F15: 100 | H15: =IFERROR(VLOOKUP(D15,'Compliance Summary'!$B$11:$C$15,2,0),"n/a") -> 0.05 | I15: -0.375 | J15: Compliant
B16: 1.1 Flat-Rate Offers | C16: AVC TC-4 1000/50 Mbps | D16: Other fixed line and fixed wireless TC-4 | E16: 70 | F16: 72.22 | H16: =IFERROR(VLOOKUP(D16,'Compliance Summary'!$B$11:$C$15,2,0),"n/a") -> 0.05 | I16: 0.03171428571 | J16: Compliant
B17: 1.1 Flat-Rate Offers | C17: AVC TC-4 1000/400 Mbps | D17: Other fixed line and fixed wireless TC-4 | E17: 230 | F17: 125 | H17: =IFERROR(VLOOKUP(D17,'Compliance Summary'!$B$11:$C$15,2,0),"n/a") -> 0.05 | I17: -0.4565217391 | J17: Compliant
B18: 1.2 Flat-Rate Offers - Smart Places | C18: Smart Places - AVC TC-4 100/40 Mbps | D18: Other fixed line and fixed wireless TC-4 | E18: 58 | F18: 60.22 | H18: =IFERROR(VLOOKUP(D18,'Compliance Summary'!$B$11:$C$15,2,0),"n/a") -> 0.05 | I18: 0.03827586207 | J18: Compliant
B19: 1.2 Flat-Rate Offers - Smart Places | C19: Smart Places - AVC TC-4 250/100 Mbps | D19: Other fixed line and fixed wireless TC-4 | E19: 100 | F19: 75 | H19: =IFERROR(VLOOKUP(D19,'Compliance Summary'!$B$11:$C$15,2,0),"n/a") -> 0.05 | I19: -0.25 | J19: Compliant
B20: 1.2 Flat-Rate Offers - Smart Places | C20: Smart Places - AVC TC-4 500/200 Mbps | D20: Other fixed line and fixed wireless TC-4 | E20: 160 | F20: 100 | H20: =IFERROR(VLOOKUP(D20,'Compliance Summary'!$B$11:$C$15,2,0),"n/a") -> 0.05 | I20: -0.375 | J20: Compliant
B21: 1.2 Flat-Rate Offers - Smart Places | C21: Smart Places - AVC TC-4 1000/400 Mbps | D21: Other fixed line and fixed wireless TC-4 | E21: 230 | F21: 125 | H21: =IFERROR(VLOOKUP(D21,'Compliance Summary'!$B$11:$C$15,2,0),"n/a") -> 0.05 | I21: -0.4565217391 | J21: Compliant
B22: 1.3 Bundled TC-4 Offers | C22: AVC TC-4 12/1 12 (Basic Bundled Offer) | D22: Other fixed line and fixed wireless TC-4 | E22: 12 | F22: 12 | H22: =IFERROR(VLOOKUP(D22,'Compliance Summary'!$B$11:$C$15,2,0),"n/a") -> 0.05 | I22: 0 | J22: Compliant
B23: 1.3 Bundled TC-4 Offers | C23: AVC TC-4 12/1 Mbps bundled | D23: Other fixed line and fixed wireless TC-4 | E23: 30.56 | F23: 32.02 | H23: =IFERROR(VLOOKUP(D23,'Compliance Summary'!$B$11:$C$15,2,0),"n/a") -> 0.05 | I23: 0.04777486911 | J23: Compliant
B24: 1.3 Bundled TC-4 Offers | C24: AVC TC-4 25/5 Mbps bundled | D24: Entry level TC-4 | E24: 32.16 | F24: 33.47 | H24: =IFERROR(VLOOKUP(D24,'Compliance Summary'!$B$11:$C$15,2,0),"n/a") -> 0.041 | I24: 0.04073383085 | J24: Compliant
B25: 1.3 Bundled TC-4 Offers | C25: AVC TC-4 25/10 Mbps bundled | D25: Other fixed line and fixed wireless TC-4 | E25: 32.16 | F25: 33.47 | H25: =IFERROR(VLOOKUP(D25,'Compliance Summary'!$B$11:$C$15,2,0),"n/a") -> 0.05 | I25: 0.04073383085 | J25: Compliant
B26: 1.3 Bundled TC-4 Offers | C26: AVC TC-4 50/20 Mbps bundled | D26: Other fixed line and fixed wireless TC-4 | E26: 51.12 | F26: 53.6 | H26: =IFERROR(VLOOKUP(D26,'Compliance Summary'!$B$11:$C$15,2,0),"n/a") -> 0.05 | I26: 0.04851330203 | J26: Compliant
B27: 1.3 Bundled TC-4 Offers | C27: AVC TC-4 AVC TC-4 up to 75/up to 10 Mbps bundled | D27: Other fixed line and fixed wireless TC-4 | E27: 51.12 | F27: 53.6 | H27: =IFERROR(VLOOKUP(D27,'Compliance Summary'!$B$11:$C$15,2,0),"n/a") -> 0.05 | I27: 0.04851330203 | J27: Compliant
B28: 1.4 Bundled TC-4 Offers: Smart Places | C28: Smart Places - AVC TC-4 25/10 Mbps bundled | D28: Other fixed line and fixed wireless TC-4 | E28: 32.16 | F28: 33.47 | H28: =IFERROR(VLOOKUP(D28,'Compliance Summary'!$B$11:$C$15,2,0),"n/a") -> 0.05 | I28: 0.04073383085 | J28: Compliant
B29: 1.4 Bundled TC-4 Offers: Smart Places | C29: Smart Places - AVC TC-4 50/20 Mbps bundled | D29: Other fixed line and fixed wireless TC-4 | E29: 51.12 | F29: 53.6 | H29: =IFERROR(VLOOKUP(D29,'Compliance Summary'!$B$11:$C$15,2,0),"n/a") -> 0.05 | I29: 0.04851330203 | J29: Compliant
B30: 1.5 Asymmetric AVC Offers in respect of the NBN Co Satellite Network | C30: AVC TC-4 12/1 Mbps | D30: Satellite AVC TC-4 | E30: 24 | F30: 24 | H30: =IFERROR(VLOOKUP(D30,'Compliance Summary'!$B$11:$C$15,2,0),"n/a") -> 0.041 | I30: 0 | J30: Compliant
B31: 1.5 Asymmetric AVC Offers in respect of the NBN Co Satellite Network | C31: AVC TC-4 25/5 Mbps | D31: Satellite AVC TC-4 | E31: 27 | F31: 27 | H31: =IFERROR(VLOOKUP(D31,'Compliance Summary'!$B$11:$C$15,2,0),"n/a") -> 0.041 | I31: 0 | J31: Compliant
B32: 2.1 Bundled TC-2 Offers | C32: AVC TC-2 5/5 Mbps | D32: Other services covered by the WAPC | E32: 50 | F32: 50 | H32: =IFERROR(VLOOKUP(D32,'Compliance Summary'!$B$11:$C$15,2,0),"n/a") -> n/a | I32: =IFERROR(F32/E32-1,0) -> 0 | J32: Compliant
B33: 2.1 Bundled TC-2 Offers | C33: AVC TC-2 10/10 Mbps | D33: Other services covered by the WAPC | E33: 131 | F33: 131 | H33: =IFERROR(VLOOKUP(D33,'Compliance Summary'!$B$11:$C$15,2,0),"n/a") -> n/a | I33: =IFERROR(F33/E33-1,0) -> 0 | J33: =IF(I33<=H33,"Compliant","Not Compliant") -> Compliant
B34: 2.1 Bundled TC-2 Offers | C34: AVC TC-2 20/20 Mbps | D34: Other services covered by the WAPC | E34: 192 | F34: 172 | H34: =IFERROR(VLOOKUP(D34,'Compliance Summary'!$B$11:$C$15,2,0),"n/a") -> n/a | I34: =IFERROR(F34/E34-1,0) -> -0.1041666667 | J34: =IF(I34<=H34,"Compliant","Not Compliant") -> Compliant
B35: 2.1 Bundled TC-2 Offers | C35: AVC TC-2 30/30 Mbps | D35: Other services covered by the WAPC | E35: 220 | F35: 175 | H35: =IFERROR(VLOOKUP(D35,'Compliance Summary'!$B$11:$C$15,2,0),"n/a") -> n/a | I35: -0.2045454545 | J35: Compliant
B36: 2.1 Bundled TC-2 Offers | C36: AVC TC-2 40/40 Mbps | D36: Other services covered by the WAPC | E36: 223 | F36: 175 | H36: =IFERROR(VLOOKUP(D36,'Compliance Summary'!$B$11:$C$15,2,0),"n/a") -> n/a | I36: -0.2152466368 | J36: Compliant
B37: 2.1 Bundled TC-2 Offers | C37: AVC TC-2 50/50 Mbps | D37: Other services covered by the WAPC | E37: 225 | F37: 175 | H37: =IFERROR(VLOOKUP(D37,'Compliance Summary'!$B$11:$C$15,2,0),"n/a") -> n/a | I37: -0.2222222222 | J37: Compliant
B38: 2.1 Bundled TC-2 Offers | C38: AVC TC-2 60/60 Mbps | D38: Other services covered by the WAPC | E38: 581 | F38: 175 | H38: =IFERROR(VLOOKUP(D38,'Compliance Summary'!$B$11:$C$15,2,0),"n/a") -> n/a | I38: -0.6987951807 | J38: Compliant
B39: 2.1 Bundled TC-2 Offers | C39: AVC TC-2 70/70 Mbps | D39: Other services covered by the WAPC | E39: 626 | F39: 175 | H39: =IFERROR(VLOOKUP(D39,'Compliance Summary'!$B$11:$C$15,2,0),"n/a") -> n/a | I39: -0.7204472843 | J39: Compliant
B40: 2.1 Bundled TC-2 Offers | C40: AVC TC-2 80/80 Mbps | D40: Other services covered by the WAPC | E40: 672 | F40: 175 | H40: =IFERROR(VLOOKUP(D40,'Compliance Summary'!$B$11:$C$15,2,0),"n/a") -> n/a | I40: -0.7395833333 | J40: Compliant
B41: 2.1 Bundled TC-2 Offers | C41: AVC TC-2 90/90 Mbps | D41: Other services covered by the WAPC | E41: 704 | F41: 175 | H41: =IFERROR(VLOOKUP(D41,'Compliance Summary'!$B$11:$C$15,2,0),"n/a") -> n/a | I41: -0.7514204545 | J41: Compliant
B42: 2.1 Bundled TC-2 Offers | C42: AVC TC-2 100/100 Mbps | D42: Other services covered by the WAPC | E42: 714 | F42: 175 | H42: =IFERROR(VLOOKUP(D42,'Compliance Summary'!$B$11:$C$15,2,0),"n/a") -> n/a | I42: -0.7549019608 | J42: Compliant
B43: 2.2 Bundled TC-2 Offers: Smart Places | C43: Smart Places - AVC TC-2 5/5 Mbps | D43: Other services covered by the WAPC | E43: 50 | F43: 50 | H43: =IFERROR(VLOOKUP(D43,'Compliance Summary'!$B$11:$C$15,2,0),"n/a") -> n/a | I43: 0 | J43: Compliant
B44: 2.2 Bundled TC-2 Offers: Smart Places | C44: Smart Places - AVC TC-2 10/10 Mbps | D44: Other services covered by the WAPC | E44: 131 | F44: 131 | H44: =IFERROR(VLOOKUP(D44,'Compliance Summary'!$B$11:$C$15,2,0),"n/a") -> n/a | I44: 0 | J44: Compliant
B45: 2.2 Bundled TC-2 Offers: Smart Places | C45: Smart Places - AVC TC-2 20/20 Mbps | D45: Other services covered by the WAPC | E45: 192 | F45: 172 | H45: =IFERROR(VLOOKUP(D45,'Compliance Summary'!$B$11:$C$15,2,0),"n/a") -> n/a | I45: -0.1041666667 | J45: Compliant
B46: 2.2 Bundled TC-2 Offers: Smart Places | C46: Smart Places - AVC TC-2 50/50 Mbps | D46: Other services covered by the WAPC | E46: 225 | F46: 175 | H46: =IFERROR(VLOOKUP(D46,'Compliance Summary'!$B$11:$C$15,2,0),"n/a") -> n/a | I46: -0.2222222222 | J46: Compliant
B47: 2.3 Symmetric Access Capacity Offers (TC-1) | C47: AVC TC-1 0.15 Mbps | D47: Other services covered by the WAPC | E47: 10 | F47: 10 | H47: =IFERROR(VLOOKUP(D47,'Compliance Summary'!$B$11:$C$15,2,0),"n/a") -> n/a | I47: 0 | J47: Compliant
B48: 2.3 Symmetric Access Capacity Offers (TC-1) | C48: AVC TC-1 0.3 Mbps | D48: Other services covered by the WAPC | E48: 20 | F48: 20 | H48: =IFERROR(VLOOKUP(D48,'Compliance Summary'!$B$11:$C$15,2,0),"n/a") -> n/a | I48: 0 | J48: Compliant
B49: 2.3 Symmetric Access Capacity Offers (TC-1) | C49: AVC TC-1 0.5 Mbps | D49: Other services covered by the WAPC | E49: 33 | F49: 33 | H49: =IFERROR(VLOOKUP(D49,'Compliance Summary'!$B$11:$C$15,2,0),"n/a") -> n/a | I49: 0 | J49: Compliant
B50: 2.3 Symmetric Access Capacity Offers (TC-1) | C50: AVC TC-1 1 Mbps | D50: Other services covered by the WAPC | E50: 66 | F50: 66 | H50: =IFERROR(VLOOKUP(D50,'Compliance Summary'!$B$11:$C$15,2,0),"n/a") -> n/a | I50: 0 | J50: Compliant
B51: 2.3 Symmetric Access Capacity Offers (TC-1) | C51: AVC TC-1 2 Mbps | D51: Other services covered by the WAPC | E51: 132 | F51: 132 | H51: =IFERROR(VLOOKUP(D51,'Compliance Summary'!$B$11:$C$15,2,0),"n/a") -> n/a | I51: 0 | J51: Compliant
B52: 2.3 Symmetric Access Capacity Offers (TC-1) | C52: AVC TC-1 5 Mbps | D52: Other services covered by the WAPC | E52: 330 | F52: 330 | H52: =IFERROR(VLOOKUP(D52,'Compliance Summary'!$B$11:$C$15,2,0),"n/a") -> n/a | I52: 0 | J52: Compliant
B53: 3.2 Connectivity Virtual Circuit Offers | C53: CVC TC-4 (Satellite) | D53: Other services covered by the WAPC | E53: 15.75 | F53: 15.75 | H53: =IFERROR(VLOOKUP(D53,'Compliance Summary'!$B$11:$C$15,2,0),"n/a") -> n/a | I53: 0 | J53: Compliant
B54: 3.2 Connectivity Virtual Circuit Offers | C54: CVC TC-1 | D54: Other services covered by the WAPC | E54: 17.5 | F54: 17.5 | H54: =IFERROR(VLOOKUP(D54,'Compliance Summary'!$B$11:$C$15,2,0),"n/a") -> n/a | I54: 0 | J54: Compliant
B55: 3.2 Connectivity Virtual Circuit Offers | C55: CVC TC-2 | D55: Other services covered by the WAPC | E55: 17.5 | F55: 17.5 | H55: =IFERROR(VLOOKUP(D55,'Compliance Summary'!$B$11:$C$15,2,0),"n/a") -> n/a | I55: 0 | J55: Compliant
B56: 4 CVC Class Offers for the NBN Co Satellite Network | C56: CVC Class 0 | D56: Satellite CVC TC-4 | E56: 0 | F56: 0 | H56: =IFERROR(VLOOKUP(D56,'Compliance Summary'!$B$11:$C$15,2,0),"n/a") -> 0 | I56: 0 | J56: Compliant
B57: 4 CVC Class Offers for the NBN Co Satellite Network | C57: CVC Class 1 | D57: Satellite CVC TC-4 | E57: 18 | F57: 18 | H57: =IFERROR(VLOOKUP(D57,'Compliance Summary'!$B$11:$C$15,2,0),"n/a") -> 0 | I57: 0 | J57: Compliant
B58: 4 CVC Class Offers for the NBN Co Satellite Network | C58: CVC Class 2 | D58: Satellite CVC TC-4 | E58: 40 | F58: 40 | H58: =IFERROR(VLOOKUP(D58,'Compliance Summary'!$B$11:$C$15,2,0),"n/a") -> 0 | I58: 0 | J58: Compliant
B59: 5.1 Network to Network Interface Offers | C59: NNI 1000BaseLX - per NNI Bearer - Recurring | D59: Other services covered by the WAPC | E59: 100 | F59: 100 | H59: =IFERROR(VLOOKUP(D59,'Compliance Summary'!$B$11:$C$15,2,0),"n/a") -> n/a | I59: 0 | J59: Compliant
B60: 5.1 Network to Network Interface Offers | C60: NNI 10GBaseLR - per NNI Bearer - Recurring | D60: Other services covered by the WAPC | E60: 400 | F60: 400 | H60: =IFERROR(VLOOKUP(D60,'Compliance Summary'!$B$11:$C$15,2,0),"n/a") -> n/a | I60: 0 | J60: Compliant
B61: 5.1 Network to Network Interface Offers | C61: NNI 100GBaseLR4 - per NNI Bearer - Recurring | D61: Other services covered by the WAPC | E61: 2400 | F61: 2400 | H61: =IFERROR(VLOOKUP(D61,'Compliance Summary'!$B$11:$C$15,2,0),"n/a") -> n/a | I61: 0 | J61: Compliant
B62: 5.1 Network to Network Interface Offers | C62: NNI 1000BaseEX - per NNI Bearer - Recurring | D62: Other services covered by the WAPC | E62: 125 | F62: 125 | H62: =IFERROR(VLOOKUP(D62,'Compliance Summary'!$B$11:$C$15,2,0),"n/a") -> n/a | I62: 0 | J62: Compliant
B63: 5.1 Network to Network Interface Offers | C63: NNI 10GBaseER - per NNI Bearer - Recurring | D63: Other services covered by the WAPC | E63: 500 | F63: 500 | H63: =IFERROR(VLOOKUP(D63,'Compliance Summary'!$B$11:$C$15,2,0),"n/a") -> n/a | I63: 0 | J63: Compliant
B64: 5.1 Network to Network Interface Offers | C64: NNI 100GBaseER4 - per NNI Bearer - Recurring | D64: Other services covered by the WAPC | E64: 3000 | F64: 3000 | H64: =IFERROR(VLOOKUP(D64,'Compliance Summary'!$B$11:$C$15,2,0),"n/a") -> n/a | I64: 0 | J64: Compliant
B65: 5.1 Network to Network Interface Offers | C65: V-NNI | D65: Other services covered by the WAPC | E65: 65 | F65: 65 | H65: =IFERROR(VLOOKUP(D65,'Compliance Summary'!$B$11:$C$15,2,0),"n/a") -> n/a | I65: 0 | J65: Compliant
B66: 5.1 Network to Network Interface Offers | C66: NNI Link | D66: Other services covered by the WAPC | E66: 0 | F66: 0 | H66: =IFERROR(VLOOKUP(D66,'Compliance Summary'!$B$11:$C$15,2,0),"n/a") -> n/a | I66: 0 | J66: Compliant
B67: 5.2 10G NNI Starter Offers | C67: 10GBaseLR (in single chassis configuration or as one of a pair in a chassis diverse configuration) – per NNI Bearer | D67: Other services covered by the WAPC | E67: 0 | F67: 200 | H67: =IFERROR(VLOOKUP(D67,'Compliance Summary'!$B$11:$C$15,2,0),"n/a") -> n/a | I67: 0 | J67: Compliant
B68: 5.2 10G NNI Starter Offers | C68: 10GBaseER (in single chassis configuration or as one of a pair in a chassis diverse configuration) – per NNI Bearer | D68: Other services covered by the WAPC | E68: 0 | F68: 250 | H68: =IFERROR(VLOOKUP(D68,'Compliance Summary'!$B$11:$C$15,2,0),"n/a") -> n/a | I68: 0 | J68: Compliant
B69: 6. Second UNI-V and AVC Offer | C69: Second UNI-V and AVC offer | D69: Other services covered by the WAPC | E69: 17.5 | F69: 17.5 | H69: =IFERROR(VLOOKUP(D69,'Compliance Summary'!$B$11:$C$15,2,0),"n/a") -> n/a | I69: 0 | J69: Compliant
B70: 7.1 Enhanced Fault Service Level Offers | C70: Enhanced SLA - 12 | D70: Other services covered by the WAPC | E70: 15 | F70: 15 | H70: =IFERROR(VLOOKUP(D70,'Compliance Summary'!$B$11:$C$15,2,0),"n/a") -> n/a | I70: 0 | J70: Compliant
B71: 7.1 Enhanced Fault Service Level Offers | C71: Enhanced SLA - 12 (24/7) | D71: Other services covered by the WAPC | E71: 15 | F71: 15 | H71: =IFERROR(VLOOKUP(D71,'Compliance Summary'!$B$11:$C$15,2,0),"n/a") -> n/a | I71: 0 | J71: Compliant
B72: 7.1 Enhanced Fault Service Level Offers | C72: Enhanced SLA - 8 | D72: Other services covered by the WAPC | E72: 25 | F72: 25 | H72: =IFERROR(VLOOKUP(D72,'Compliance Summary'!$B$11:$C$15,2,0),"n/a") -> n/a | I72: 0 | J72: Compliant
B73: 7.1 Enhanced Fault Service Level Offers | C73: Enhanced SLA - 8 (24/7) | D73: Other services covered by the WAPC | E73: 55 | F73: 55 | H73: =IFERROR(VLOOKUP(D73,'Compliance Summary'!$B$11:$C$15,2,0),"n/a") -> n/a | I73: 0 | J73: Compliant
B74: 7.1 Enhanced Fault Service Level Offers | C74: Enhanced SLA - 6 | D74: Other services covered by the WAPC | E74: 32.5 | F74: 32.5 | H74: =IFERROR(VLOOKUP(D74,'Compliance Summary'!$B$11:$C$15,2,0),"n/a") -> n/a | I74: 0 | J74: Compliant
B75: 7.1 Enhanced Fault Service Level Offers | C75: Enhanced SLA - 6 (24/7) | D75: Other services covered by the WAPC | E75: 65 | F75: 65 | H75: =IFERROR(VLOOKUP(D75,'Compliance Summary'!$B$11:$C$15,2,0),"n/a") -> n/a | I75: 0 | J75: Compliant
B76: 7.1 Enhanced Fault Service Level Offers | C76: Enhanced SLA - 4 | D76: Other services covered by the WAPC | E76: 40 | F76: 40 | H76: =IFERROR(VLOOKUP(D76,'Compliance Summary'!$B$11:$C$15,2,0),"n/a") -> n/a | I76: 0 | J76: Compliant
B77: 7.1 Enhanced Fault Service Level Offers | C77: Enhanced SLA - 4 (24/7) | D77: Other services covered by the WAPC | E77: 25 | F77: 25 | H77: =IFERROR(VLOOKUP(D77,'Compliance Summary'!$B$11:$C$15,2,0),"n/a") -> n/a | I77: 0 | J77: Compliant
B78: 7.2 Enhanced Fault Service Level Offers | C78: Enhanced SLA - 90 days (24/7) | D78: Other services covered by the WAPC | E78: 150 | F78: 150 | H78: =IFERROR(VLOOKUP(D78,'Compliance Summary'!$B$11:$C$15,2,0),"n/a") -> n/a | I78: 0 | J78: Compliant
B79: 7.3 Enhanced Fault Service Level Offers: Smart Places | C79: Smart Places - Enhanced SLA - 12 | D79: Other services covered by the WAPC | E79: 15 | F79: 15 | H79: =IFERROR(VLOOKUP(D79,'Compliance Summary'!$B$11:$C$15,2,0),"n/a") -> n/a | I79: 0 | J79: Compliant
B80: 7.3 Enhanced Fault Service Level Offers: Smart Places | C80: Smart Places - Enhanced SLA - 12 (24/7) | D80: Other services covered by the WAPC | E80: 15 | F80: 15 | H80: =IFERROR(VLOOKUP(D80,'Compliance Summary'!$B$11:$C$15,2,0),"n/a") -> n/a | I80: 0 | J80: Compliant
B81: 7.3 Enhanced Fault Service Level Offers: Smart Places | C81: Smart Places - Enhanced SLA - 8 | D81: Other services covered by the WAPC | E81: 25 | F81: 25 | H81: =IFERROR(VLOOKUP(D81,'Compliance Summary'!$B$11:$C$15,2,0),"n/a") -> n/a | I81: 0 | J81: Compliant
B82: 7.3 Enhanced Fault Service Level Offers: Smart Places | C82: Smart places - Enhanced SLA - 8 (24/7) | D82: Other services covered by the WAPC | E82: 55 | F82: 55 | H82: =IFERROR(VLOOKUP(D82,'Compliance Summary'!$B$11:$C$15,2,0),"n/a") -> n/a | I82: 0 | J82: Compliant
B83: 8.1 Installations and activations – NBN Co Networks other than the NBN Co Satellite Network | C83: Initial Standard Installation | D83: Other services covered by the WAPC | E83: 0 | F83: 0 | H83: =IFERROR(VLOOKUP(D83,'Compliance Summary'!$B$11:$C$15,2,0),"n/a") -> n/a | I83: 0 | J83: Compliant
B84: 8.1 Installations and activations – NBN Co Networks other than the NBN Co Satellite Network | C84: After Hours Installation | D84: Other services covered by the WAPC | E84: 150 | F84: 150 | H84: =IFERROR(VLOOKUP(D84,'Compliance Summary'!$B$11:$C$15,2,0),"n/a") -> n/a | I84: 0 | J84: Compliant
B85: 8.1 Installations and activations – NBN Co Networks other than the NBN Co Satellite Network | C85: Fibre upgrade installation | D85: Other services covered by the WAPC | E85: 200 | F85: 200 | H85: =IFERROR(VLOOKUP(D85,'Compliance Summary'!$B$11:$C$15,2,0),"n/a") -> n/a | I85: 0 | J85: Compliant
B86: 8.1 Installations and activations – NBN Co Networks other than the NBN Co Satellite Network | C86: Subsequent Installation of power supply with battery backup – Fibre Network only | D86: Other services covered by the WAPC | E86: 0 | F86: 0 | H86: =IFERROR(VLOOKUP(D86,'Compliance Summary'!$B$11:$C$15,2,0),"n/a") -> n/a | I86: 0 | J86: Compliant
B87: 8.1 Installations and activations – NBN Co Networks other than the NBN Co Satellite Network | C87: Access Component Reactivation | D87: Other services covered by the WAPC | E87: 5 | F87: 5 | H87: =IFERROR(VLOOKUP(D87,'Compliance Summary'!$B$11:$C$15,2,0),"n/a") -> n/a | I87: 0 | J87: Compliant
B88: 8.1 Installations and activations – NBN Co Networks other than the NBN Co Satellite Network | C88: CVC Set-up & Activation | D88: Other services covered by the WAPC | E88: 0 | F88: 0 | H88: =IFERROR(VLOOKUP(D88,'Compliance Summary'!$B$11:$C$15,2,0),"n/a") -> n/a | I88: 0 | J88: Compliant
B89: 8.1 Installations and activations – NBN Co Networks other than the NBN Co Satellite Network | C89: NNI 1000BaseLX - Set-up & Activation | D89: Other services covered by the WAPC | E89: 1000 | F89: 1000 | H89: =IFERROR(VLOOKUP(D89,'Compliance Summary'!$B$11:$C$15,2,0),"n/a") -> n/a | I89: 0 | J89: Compliant
B90: 8.1 Installations and activations – NBN Co Networks other than the NBN Co Satellite Network | C90: NNI 10GBaseLR - Set-up & Activation | D90: Other services covered by the WAPC | E90: 5000 | F90: 3000 | H90: =IFERROR(VLOOKUP(D90,'Compliance Summary'!$B$11:$C$15,2,0),"n/a") -> n/a | I90: -0.4 | J90: Compliant
B91: 8.1 Installations and activations – NBN Co Networks other than the NBN Co Satellite Network | C91: NNI 100GBase LR4 - Set-up & Activation | D91: Other services covered by the WAPC | E91: 30000 | F91: 20000 | H91: =IFERROR(VLOOKUP(D91,'Compliance Summary'!$B$11:$C$15,2,0),"n/a") -> n/a | I91: -0.3333333333 | J91: Compliant
B92: 8.1 Installations and activations – NBN Co Networks other than the NBN Co Satellite Network | C92: NNI 1000BaseEX - Set-up & Activation | D92: Other services covered by the WAPC | E92: 2000 | F92: 2000 | H92: =IFERROR(VLOOKUP(D92,'Compliance Summary'!$B$11:$C$15,2,0),"n/a") -> n/a | I92: 0 | J92: Compliant
B93: 8.1 Installations and activations – NBN Co Networks other than the NBN Co Satellite Network | C93: NNI 10GBaseER - Set-up & Activation | D93: Other services covered by the WAPC | E93: 6000 | F93: 4000 | H93: =IFERROR(VLOOKUP(D93,'Compliance Summary'!$B$11:$C$15,2,0),"n/a") -> n/a | I93: -0.3333333333 | J93: Compliant
B94: 8.1 Installations and activations – NBN Co Networks other than the NBN Co Satellite Network | C94: NNI 100GBase ER4 - Set-up & Activation | D94: Other services covered by the WAPC | E94: 36000 | F94: 24000 | H94: =IFERROR(VLOOKUP(D94,'Compliance Summary'!$B$11:$C$15,2,0),"n/a") -> n/a | I94: -0.3333333333 | J94: Compliant
B95: 8.1 Installations and activations – NBN Co Networks other than the NBN Co Satellite Network | C95: NNI Link Activation | D95: Other services covered by the WAPC | E95: 0 | F95: 0 | H95: =IFERROR(VLOOKUP(D95,'Compliance Summary'!$B$11:$C$15,2,0),"n/a") -> n/a | I95: 0 | J95: Compliant
B96: 8.1 Installations and activations – NBN Co Networks other than the NBN Co Satellite Network | C96: V-NNI Activation | D96: Other services covered by the WAPC | E96: 250 | F96: 250 | H96: =IFERROR(VLOOKUP(D96,'Compliance Summary'!$B$11:$C$15,2,0),"n/a") -> n/a | I96: 0 | J96: Compliant
B97: 8.1 Installations and activations – NBN Co Networks other than the NBN Co Satellite Network | C97: Service Qualification Enquiry | D97: Other services covered by the WAPC | E97: 0 | F97: 0 | H97: =IFERROR(VLOOKUP(D97,'Compliance Summary'!$B$11:$C$15,2,0),"n/a") -> n/a | I97: 0 | J97: Compliant
B98: 8.2 Installations and activations – Smart Places | C98: Smart Places - Initial Standard Installation | D98: Other services covered by the WAPC | E98: 0 | F98: 0 | H98: =IFERROR(VLOOKUP(D98,'Compliance Summary'!$B$11:$C$15,2,0),"n/a") -> n/a | I98: =IFERROR(F98/E98-1,0) -> 0 | J98: =IF(I98<=H98,"Compliant","Not Compliant") -> Compliant
B99: 8.2 Installations and activations – Smart Places | C99: Smart Places - Access Component Reactivation | D99: Other services covered by the WAPC | E99: 5 | F99: 5 | H99: =IFERROR(VLOOKUP(D99,'Compliance Summary'!$B$11:$C$15,2,0),"n/a") -> n/a | I99: 0 | J99: Compliant
B100: 8.2 Installations and activations – Smart Places | C100: Smart Places - CVC Set-up & Activation | D100: Other services covered by the WAPC | E100: 0 | F100: 0 | H100: =IFERROR(VLOOKUP(D100,'Compliance Summary'!$B$11:$C$15,2,0),"n/a") -> n/a | I100: 0 | J100: Compliant
B101: 8.2 Installations and activations – Smart Places | C101: Smart Places - NNI 1000BaseLX - Set-up & Activation | D101: Other services covered by the WAPC | E101: 1000 | F101: 1000 | H101: =IFERROR(VLOOKUP(D101,'Compliance Summary'!$B$11:$C$15,2,0),"n/a") -> n/a | I101: 0 | J101: Compliant
B102: 8.2 Installations and activations – Smart Places | C102: Smart Places - NNI 10GBaseLR - Set-up & Activation | D102: Other services covered by the WAPC | E102: 5000 | F102: 3000 | H102: =IFERROR(VLOOKUP(D102,'Compliance Summary'!$B$11:$C$15,2,0),"n/a") -> n/a | I102: -0.4 | J102: Compliant
B103: 8.2 Installations and activations – Smart Places | C103: Smart Places - NNI 100GBase LR4 - Set-up & Activation | D103: Other services covered by the WAPC | E103: 30000 | F103: 20000 | H103: =IFERROR(VLOOKUP(D103,'Compliance Summary'!$B$11:$C$15,2,0),"n/a") -> n/a | I103: -0.3333333333 | J103: Compliant
B104: 8.2 Installations and activations – Smart Places | C104: Smart Places - NNI 1000BaseEX - Set-up & Activation | D104: Other services covered by the WAPC | E104: 2000 | F104: 2000 | H104: =IFERROR(VLOOKUP(D104,'Compliance Summary'!$B$11:$C$15,2,0),"n/a") -> n/a | I104: 0 | J104: Compliant
B105: 8.2 Installations and activations – Smart Places | C105: Smart Places - NNI 10GBaseER - Set-up & Activation | D105: Other services covered by the WAPC | E105: 6000 | F105: 4000 | H105: =IFERROR(VLOOKUP(D105,'Compliance Summary'!$B$11:$C$15,2,0),"n/a") -> n/a | I105: -0.3333333333 | J105: Compliant
B106: 8.2 Installations and activations – Smart Places | C106: Smart Places - NNI 100GBase ER4 - Set-up & Activation | D106: Other services covered by the WAPC | E106: 36000 | F106: 24000 | H106: =IFERROR(VLOOKUP(D106,'Compliance Summary'!$B$11:$C$15,2,0),"n/a") -> n/a | I106: -0.3333333333 | J106: Compliant
B107: 8.2 Installations and activations – Smart Places | C107: Smart Places - NNI Link Activation | D107: Other services covered by the WAPC | E107: 0 | F107: 0 | H107: =IFERROR(VLOOKUP(D107,'Compliance Summary'!$B$11:$C$15,2,0),"n/a") -> n/a | I107: =IFERROR(F107/E107-1,0) -> 0 | J107: =IF(I107<=H107,"Compliant","Not Compliant") -> Compliant
B108: 8.2 Installations and activations – Smart Places | C108: Smart Places - V-NNI Activation | D108: Other services covered by the WAPC | E108: 250 | F108: 250 | H108: =IFERROR(VLOOKUP(D108,'Compliance Summary'!$B$11:$C$15,2,0),"n/a") -> n/a | I108: 0 | J108: Compliant
B109: 8.3 Installations and activations – NBN Co Satellite Network | C109: Initial Standard Installation (excluding any additional incidental charges which may apply for Limited Access Areas) | D109: Other services covered by the WAPC | E109: 0 | F109: 0 | H109: =IFERROR(VLOOKUP(D109,'Compliance Summary'!$B$11:$C$15,2,0),"n/a") -> n/a | I109: 0 | J109: Compliant
B110: 8.3 Installations and activations – NBN Co Satellite Network | C110: Access Component Reactivation (excluding any additional incidental charges which may apply for Limited Access Areas) | D110: Other services covered by the WAPC | E110: 5 | F110: 5 | H110: =IFERROR(VLOOKUP(D110,'Compliance Summary'!$B$11:$C$15,2,0),"n/a") -> n/a | I110: 0 | J110: Compliant
B111: 8.3 Installations and activations – NBN Co Satellite Network | C111: Subsequent Installation in Urban Area, Major Rural Area, Minor Rural Area or Remote Area - 0.8m NTD outdoor unit dish | D111: Other services covered by the WAPC | E111: 692 | F111: 692 | H111: =IFERROR(VLOOKUP(D111,'Compliance Summary'!$B$11:$C$15,2,0),"n/a") -> n/a | I111: 0 | J111: Compliant
B112: 8.3 Installations and activations – NBN Co Satellite Network | C112: Subsequent Installation in Urban Area, Major Rural Area, Minor Rural Area or Remote Area - 1.2m NTD outdoor unit dish | D112: Other services covered by the WAPC | E112: 1057 | F112: 1057 | H112: =IFERROR(VLOOKUP(D112,'Compliance Summary'!$B$11:$C$15,2,0),"n/a") -> n/a | I112: 0 | J112: Compliant
B113: 8.3 Installations and activations – NBN Co Satellite Network | C113: Subsequent Installation in Urban Area, Major Rural Area, Minor Rural Area or Remote Area - 1.8m NTD outdoor unit dish | D113: Other services covered by the WAPC | E113: 2226 | F113: 2226 | H113: =IFERROR(VLOOKUP(D113,'Compliance Summary'!$B$11:$C$15,2,0),"n/a") -> n/a | I113: 0 | J113: Compliant
B114: 8.3 Installations and activations – NBN Co Satellite Network | C114: Subsequent Installation in Isolated Area - 0.8m NTD outdoor unit dish | D114: Other services covered by the WAPC | E114: 1559 | F114: 1559 | H114: =IFERROR(VLOOKUP(D114,'Compliance Summary'!$B$11:$C$15,2,0),"n/a") -> n/a | I114: 0 | J114: Compliant
B115: 8.3 Installations and activations – NBN Co Satellite Network | C115: Subsequent Installation in Isolated Area - 1.2m NTD outdoor unit dish | D115: Other services covered by the WAPC | E115: 1751 | F115: 1751 | H115: =IFERROR(VLOOKUP(D115,'Compliance Summary'!$B$11:$C$15,2,0),"n/a") -> n/a | I115: 0 | J115: Compliant
B116: 8.3 Installations and activations – NBN Co Satellite Network | C116: Subsequent Installation in Isolated Area - 1.8m NTD outdoor unit dish | D116: Other services covered by the WAPC | E116: 3732 | F116: 3732 | H116: =IFERROR(VLOOKUP(D116,'Compliance Summary'!$B$11:$C$15,2,0),"n/a") -> n/a | I116: 0 | J116: Compliant
B117: 8.3 Installations and activations – NBN Co Satellite Network | C117: CVC Set-up & Activation | D117: Other services covered by the WAPC | E117: 0 | F117: 0 | H117: =IFERROR(VLOOKUP(D117,'Compliance Summary'!$B$11:$C$15,2,0),"n/a") -> n/a | I117: 0 | J117: Compliant
B118: 8.3 Installations and activations – NBN Co Satellite Network | C118: NNI 1000BaseLX - Set-up & Activation | D118: Other services covered by the WAPC | E118: 1000 | F118: 1000 | H118: =IFERROR(VLOOKUP(D118,'Compliance Summary'!$B$11:$C$15,2,0),"n/a") -> n/a | I118: 0 | J118: Compliant
B119: 8.3 Installations and activations – NBN Co Satellite Network | C119: NNI 10GBaseLR - Set-up & Activation | D119: Other services covered by the WAPC | E119: 5000 | F119: 3000 | H119: =IFERROR(VLOOKUP(D119,'Compliance Summary'!$B$11:$C$15,2,0),"n/a") -> n/a | I119: -0.4 | J119: Compliant
B120: 8.3 Installations and activations – NBN Co Satellite Network | C120: NNI 1000BaseEX - Set-up & Activation | D120: Other services covered by the WAPC | E120: 2000 | F120: 2000 | H120: =IFERROR(VLOOKUP(D120,'Compliance Summary'!$B$11:$C$15,2,0),"n/a") -> n/a | I120: 0 | J120: Compliant
B121: 8.3 Installations and activations – NBN Co Satellite Network | C121: NNI 10GBaseER - Set-up & Activation | D121: Other services covered by the WAPC | E121: 6000 | F121: 4000 | H121: =IFERROR(VLOOKUP(D121,'Compliance Summary'!$B$11:$C$15,2,0),"n/a") -> n/a | I121: -0.3333333333 | J121: Compliant
B122: 8.3 Installations and activations – NBN Co Satellite Network | C122: Site Survey Charge | D122: Other services covered by the WAPC | E122: 225 | F122: 225 | H122: =IFERROR(VLOOKUP(D122,'Compliance Summary'!$B$11:$C$15,2,0),"n/a") -> n/a | I122: 0 | J122: Compliant
B123: 8.4 Service modifications – NBN Co Networks other than the NBN Co Satellite Network | C123: Access Component Modification (no attendance at Premises required) | D123: Other services covered by the WAPC | E123: 0 | F123: 0 | H123: =IFERROR(VLOOKUP(D123,'Compliance Summary'!$B$11:$C$15,2,0),"n/a") -> n/a | I123: 0 | J123: Compliant
B124: 8.4 Service modifications – NBN Co Networks other than the NBN Co Satellite Network | C124: CVC Modification | D124: Other services covered by the WAPC | E124: 0 | F124: 0 | H124: =IFERROR(VLOOKUP(D124,'Compliance Summary'!$B$11:$C$15,2,0),"n/a") -> n/a | I124: =IFERROR(F124/E124-1,0) -> 0 | J124: =IF(I124<=H124,"Compliant","Not Compliant") -> Compliant
B125: 8.4 Service modifications – NBN Co Networks other than the NBN Co Satellite Network | C125: NNI Modification | D125: Other services covered by the WAPC | E125: 0 | F125: 0 | H125: =IFERROR(VLOOKUP(D125,'Compliance Summary'!$B$11:$C$15,2,0),"n/a") -> n/a | I125: 0 | J125: Compliant
B126: 8.4 Service modifications – NBN Co Networks other than the NBN Co Satellite Network | C126: NNI Link Modification | D126: Other services covered by the WAPC | E126: 0 | F126: 0 | H126: =IFERROR(VLOOKUP(D126,'Compliance Summary'!$B$11:$C$15,2,0),"n/a") -> n/a | I126: 0 | J126: Compliant
B127: 8.5 Service modifications - Smart Places | C127: Smart Places - Access Component Modification (no attendance at Smart Location required) | D127: Other services covered by the WAPC | E127: 0 | F127: 0 | H127: =IFERROR(VLOOKUP(D127,'Compliance Summary'!$B$11:$C$15,2,0),"n/a") -> n/a | I127: 0 | J127: Compliant
B128: 8.5 Service modifications - Smart Places | C128: Smart Places - CVC Modification | D128: Other services covered by the WAPC | E128: 0 | F128: 0 | H128: =IFERROR(VLOOKUP(D128,'Compliance Summary'!$B$11:$C$15,2,0),"n/a") -> n/a | I128: 0 | J128: Compliant
B129: 8.5 Service modifications - Smart Places | C129: Smart Places - NNI Modification | D129: Other services covered by the WAPC | E129: 0 | F129: 0 | H129: =IFERROR(VLOOKUP(D129,'Compliance Summary'!$B$11:$C$15,2,0),"n/a") -> n/a | I129: 0 | J129: Compliant
B130: 8.5 Service modifications - Smart Places | C130: Smart Places - NNI Link Modification | D130: Other services covered by the WAPC | E130: 0 | F130: 0 | H130: =IFERROR(VLOOKUP(D130,'Compliance Summary'!$B$11:$C$15,2,0),"n/a") -> n/a | I130: 0 | J130: Compliant
B131: 8.6 Service modifications – NBN Co Satellite Network | C131: Equipment Modification (NTD Indoor Unit)(excluding any additional incidental charges which may apply for Limited Access Areas) | D131: Other services covered by the WAPC | E131: 420 | F131: 420 | H131: =IFERROR(VLOOKUP(D131,'Compliance Summary'!$B$11:$C$15,2,0),"n/a") -> n/a | I131: 0 | J131: Compliant
B132: 8.6 Service modifications – NBN Co Satellite Network | C132: Access Component Modification (no attendance at Premises required) | D132: Other services covered by the WAPC | E132: 0 | F132: 0 | H132: =IFERROR(VLOOKUP(D132,'Compliance Summary'!$B$11:$C$15,2,0),"n/a") -> n/a | I132: 0 | J132: Compliant
B133: 8.6 Service modifications – NBN Co Satellite Network | C133: CVC Modification | D133: Other services covered by the WAPC | E133: 0 | F133: 0 | H133: =IFERROR(VLOOKUP(D133,'Compliance Summary'!$B$11:$C$15,2,0),"n/a") -> n/a | I133: 0 | J133: Compliant
B134: 8.6 Service modifications – NBN Co Satellite Network | C134: NNI Modification | D134: Other services covered by the WAPC | E134: 0 | F134: 0 | H134: =IFERROR(VLOOKUP(D134,'Compliance Summary'!$B$11:$C$15,2,0),"n/a") -> n/a | I134: 0 | J134: Compliant
B135: 8.6 Service modifications – NBN Co Satellite Network | C135: Equipment Modification (NTD outdoor unit) in Urban Area, Major Rural Area, Minor Rural Area or Remote Area - 0.8m NTD outdoor unit dish | D135: Other services covered by the WAPC | E135: 754 | F135: 754 | H135: =IFERROR(VLOOKUP(D135,'Compliance Summary'!$B$11:$C$15,2,0),"n/a") -> n/a | I135: 0 | J135: Compliant
B136: 8.6 Service modifications – NBN Co Satellite Network | C136: Equipment Modification (NTD outdoor unit) in Urban Area, Major Rural Area, Minor Rural Area or Remote Area - 1.2m NTD outdoor unit dish | D136: Other services covered by the WAPC | E136: 1119 | F136: 1119 | H136: =IFERROR(VLOOKUP(D136,'Compliance Summary'!$B$11:$C$15,2,0),"n/a") -> n/a | I136: 0 | J136: Compliant
B137: 8.6 Service modifications – NBN Co Satellite Network | C137: Equipment Modification (NTD outdoor unit) in Urban Area, Major Rural Area, Minor Rural Area or Remote Area - 1.8m NTD outdoor unit dish | D137: Other services covered by the WAPC | E137: 2288 | F137: 2288 | H137: =IFERROR(VLOOKUP(D137,'Compliance Summary'!$B$11:$C$15,2,0),"n/a") -> n/a | I137: 0 | J137: Compliant
B138: 8.6 Service modifications – NBN Co Satellite Network | C138: Equipment Modification (NTD outdoor unit) in Isolated Area - 0.8m NTD outdoor unit dish | D138: Other services covered by the WAPC | E138: 1621 | F138: 1621 | H138: =IFERROR(VLOOKUP(D138,'Compliance Summary'!$B$11:$C$15,2,0),"n/a") -> n/a | I138: 0 | J138: Compliant
B139: 8.6 Service modifications – NBN Co Satellite Network | C139: Equipment Modification (NTD outdoor unit) in Isolated Area - 1.2m NTD outdoor unit dish | D139: Other services covered by the WAPC | E139: 1812 | F139: 1812 | H139: =IFERROR(VLOOKUP(D139,'Compliance Summary'!$B$11:$C$15,2,0),"n/a") -> n/a | I139: 0 | J139: Compliant
B140: 8.6 Service modifications – NBN Co Satellite Network | C140: Equipment Modification (NTD outdoor unit) in Isolated Area - 1.8m NTD outdoor unit dish | D140: Other services covered by the WAPC | E140: 3793 | F140: 3793 | H140: =IFERROR(VLOOKUP(D140,'Compliance Summary'!$B$11:$C$15,2,0),"n/a") -> n/a | I140: 0 | J140: Compliant
B141: 8.6 Service modifications – NBN Co Satellite Network | C141: Equipment Modification (NTD indoor and outdoor unit) in Urban Area, Major Rural Area, Minor Rural Area or Remote Area - 0.8m NTD outdoor unit dish | D141: Other services covered by the WAPC | E141: 783 | F141: 783 | H141: =IFERROR(VLOOKUP(D141,'Compliance Summary'!$B$11:$C$15,2,0),"n/a") -> n/a | I141: 0 | J141: Compliant
B142: 8.6 Service modifications – NBN Co Satellite Network | C142: Equipment Modification (NTD indoor and outdoor unit) in Urban Area, Major Rural Area, Minor Rural Area or Remote Area - 1.2m NTD outdoor unit dish | D142: Other services covered by the WAPC | E142: 1149 | F142: 1149 | H142: =IFERROR(VLOOKUP(D142,'Compliance Summary'!$B$11:$C$15,2,0),"n/a") -> n/a | I142: 0 | J142: Compliant
B143: 8.6 Service modifications – NBN Co Satellite Network | C143: Equipment Modification (NTD indoor and outdoor unit) in Urban Area, Major Rural Area, Minor Rural Area or Remote Area - 1.8m NTD outdoor unit dish | D143: Other services covered by the WAPC | E143: 2317 | F143: 2317 | H143: =IFERROR(VLOOKUP(D143,'Compliance Summary'!$B$11:$C$15,2,0),"n/a") -> n/a | I143: 0 | J143: Compliant
B144: 8.6 Service modifications – NBN Co Satellite Network | C144: Equipment Modification (NTD indoor and outdoor unit) in Isolated Area - 0.8m NTD outdoor unit dish | D144: Other services covered by the WAPC | E144: 1650 | F144: 1650 | H144: =IFERROR(VLOOKUP(D144,'Compliance Summary'!$B$11:$C$15,2,0),"n/a") -> n/a | I144: 0 | J144: Compliant
B145: 8.6 Service modifications – NBN Co Satellite Network | C145: Equipment Modification (NTD indoor and outdoor unit) in Isolated Area - 1.2m NTD outdoor unit dish | D145: Other services covered by the WAPC | E145: 1842 | F145: 1842 | H145: =IFERROR(VLOOKUP(D145,'Compliance Summary'!$B$11:$C$15,2,0),"n/a") -> n/a | I145: 0 | J145: Compliant
B146: 8.6 Service modifications – NBN Co Satellite Network | C146: Equipment Modification (NTD indoor and outdoor unit) in Isolated Area - 1.8m NTD outdoor unit dish | D146: Other services covered by the WAPC | E146: 3823 | F146: 3823 | H146: =IFERROR(VLOOKUP(D146,'Compliance Summary'!$B$11:$C$15,2,0),"n/a") -> n/a | I146: =IFERROR(F146/E146-1,0) -> 0 | J146: =IF(I146<=H146,"Compliant","Not Compliant") -> Compliant
B147: 8.7 Service management – NBN Co Networks other than the NBN Co Satellite Network | C147: On Site Maintainance Call Out | D147: Other services covered by the WAPC | E147: 0 | F147: 0 | H147: =IFERROR(VLOOKUP(D147,'Compliance Summary'!$B$11:$C$15,2,0),"n/a") -> n/a | I147: 0 | J147: Compliant
B148: 8.7 Service management – NBN Co Networks other than the NBN Co Satellite Network | C148: No Fault Found (No Truck Roll Required) | D148: Other services covered by the WAPC | E148: 50 | F148: 50 | H148: =IFERROR(VLOOKUP(D148,'Compliance Summary'!$B$11:$C$15,2,0),"n/a") -> n/a | I148: 0 | J148: Compliant
B149: 8.7 Service management – NBN Co Networks other than the NBN Co Satellite Network | C149: Late Cancellation (Site Visit Required) [FTTN, FTTB, FTTC-, HFC] | D149: Other services covered by the WAPC | E149: 75 | F149: 75 | H149: =IFERROR(VLOOKUP(D149,'Compliance Summary'!$B$11:$C$15,2,0),"n/a") -> n/a | I149: 0 | J149: Compliant
B150: 8.7 Service management – NBN Co Networks other than the NBN Co Satellite Network | C150: First Missed Appointment [FTTN, FTTB, FTTC-, HFC] | D150: Other services covered by the WAPC | E150: 50 | F150: 50 | H150: =IFERROR(VLOOKUP(D150,'Compliance Summary'!$B$11:$C$15,2,0),"n/a") -> n/a | I150: 0 | J150: Compliant
B151: 8.7 Service management – NBN Co Networks other than the NBN Co Satellite Network | C151: Subsequent Missed Appointment [FTTN, FTTB, FTTC-, HFC] | D151: Other services covered by the WAPC | E151: 75 | F151: 75 | H151: =IFERROR(VLOOKUP(D151,'Compliance Summary'!$B$11:$C$15,2,0),"n/a") -> n/a | I151: 0 | J151: Compliant
B152: 8.7 Service management – NBN Co Networks other than the NBN Co Satellite Network | C152: Late Cancellation (Site Visit Required) [Fibre, Wireless] | D152: Other services covered by the WAPC | E152: 0 | F152: 0 | H152: =IFERROR(VLOOKUP(D152,'Compliance Summary'!$B$11:$C$15,2,0),"n/a") -> n/a | I152: 0 | J152: Compliant
B153: 8.7 Service management – NBN Co Networks other than the NBN Co Satellite Network | C153: First Missed Appointment [Fibre, Wireless] | D153: Other services covered by the WAPC | E153: 0 | F153: 0 | H153: =IFERROR(VLOOKUP(D153,'Compliance Summary'!$B$11:$C$15,2,0),"n/a") -> n/a | I153: 0 | J153: Compliant
B154: 8.7 Service management – NBN Co Networks other than the NBN Co Satellite Network | C154: Subsequent Missed Appointment [Fibre, Wireless] | D154: Other services covered by the WAPC | E154: 0 | F154: 0 | H154: =IFERROR(VLOOKUP(D154,'Compliance Summary'!$B$11:$C$15,2,0),"n/a") -> n/a | I154: 0 | J154: Compliant
B155: 8.7 Service management – NBN Co Networks other than the NBN Co Satellite Network | C155: Co-ordinated Appointment (Day) | D155: Other services covered by the WAPC | E155: 200 | F155: 200 | H155: =IFERROR(VLOOKUP(D155,'Compliance Summary'!$B$11:$C$15,2,0),"n/a") -> n/a | I155: 0 | J155: Compliant
B156: 8.7 Service management – NBN Co Networks other than the NBN Co Satellite Network | C156: Co-ordinated Appointment (Night) | D156: Other services covered by the WAPC | E156: 300 | F156: 300 | H156: =IFERROR(VLOOKUP(D156,'Compliance Summary'!$B$11:$C$15,2,0),"n/a") -> n/a | I156: 0 | J156: Compliant
B157: 8.7 Service management – NBN Co Networks other than the NBN Co Satellite Network | C157: Late Cancellation (After Hours Installation Appointment)[Fibre, Wireless, FTTB, FTTN, FTTC-] | D157: Other services covered by the WAPC | E157: 150 | F157: 150 | H157: =IFERROR(VLOOKUP(D157,'Compliance Summary'!$B$11:$C$15,2,0),"n/a") -> n/a | I157: 0 | J157: Compliant
B158: 8.7 Service management – NBN Co Networks other than the NBN Co Satellite Network | C158: Late Cancellation (Day) | D158: Other services covered by the WAPC | E158: 200 | F158: 200 | H158: =IFERROR(VLOOKUP(D158,'Compliance Summary'!$B$11:$C$15,2,0),"n/a") -> n/a | I158: 0 | J158: Compliant
B159: 8.7 Service management – NBN Co Networks other than the NBN Co Satellite Network | C159: Late Cancellation (Night) | D159: Other services covered by the WAPC | E159: 300 | F159: 300 | H159: =IFERROR(VLOOKUP(D159,'Compliance Summary'!$B$11:$C$15,2,0),"n/a") -> n/a | I159: 0 | J159: Compliant
B160: 8.7 Service management – NBN Co Networks other than the NBN Co Satellite Network | C160: Late Rescheduling (Day) | D160: Other services covered by the WAPC | E160: 200 | F160: 200 | H160: =IFERROR(VLOOKUP(D160,'Compliance Summary'!$B$11:$C$15,2,0),"n/a") -> n/a | I160: 0 | J160: Compliant
B161: 8.7 Service management – NBN Co Networks other than the NBN Co Satellite Network | C161: Late Rescheduling (Night) | D161: Other services covered by the WAPC | E161: 300 | F161: 300 | H161: =IFERROR(VLOOKUP(D161,'Compliance Summary'!$B$11:$C$15,2,0),"n/a") -> n/a | I161: 0 | J161: Compliant
B162: 8.7 Service management – NBN Co Networks other than the NBN Co Satellite Network | C162: Restoration of an Ordered Product | D162: Other services covered by the WAPC | E162: 50 | F162: 50 | H162: =IFERROR(VLOOKUP(D162,'Compliance Summary'!$B$11:$C$15,2,0),"n/a") -> n/a | I162: 0 | J162: Compliant
B163: 8.7 Service management – NBN Co Networks other than the NBN Co Satellite Network | C163: Missed Appointment (After Hours Installation Appointment)[Fibre, Wireless, FTTB, FTTN, FTTC-] | D163: Other services covered by the WAPC | E163: 150 | F163: 150 | H163: =IFERROR(VLOOKUP(D163,'Compliance Summary'!$B$11:$C$15,2,0),"n/a") -> n/a | I163: 0 | J163: Compliant
B164: 8.7 Service management – NBN Co Networks other than the NBN Co Satellite Network | C164: Missed Appointment (Day) | D164: Other services covered by the WAPC | E164: 200 | F164: 200 | H164: =IFERROR(VLOOKUP(D164,'Compliance Summary'!$B$11:$C$15,2,0),"n/a") -> n/a | I164: 0 | J164: Compliant
B165: 8.7 Service management – NBN Co Networks other than the NBN Co Satellite Network | C165: Missed Appointment (Night) | D165: Other services covered by the WAPC | E165: 300 | F165: 300 | H165: =IFERROR(VLOOKUP(D165,'Compliance Summary'!$B$11:$C$15,2,0),"n/a") -> n/a | I165: 0 | J165: Compliant
B166: 8.7 Service management – NBN Co Networks other than the NBN Co Satellite Network | C166: Incorrect Callout - FTTN, FTTB, FTTC-, HFC | D166: Other services covered by the WAPC | E166: 75 | F166: 75 | H166: =IFERROR(VLOOKUP(D166,'Compliance Summary'!$B$11:$C$15,2,0),"n/a") -> n/a | I166: =IFERROR(F166/E166-1,0) -> 0 | J166: =IF(I166<=H166,"Compliant","Not Compliant") -> Compliant
B167: 8.7 Service management – NBN Co Networks other than the NBN Co Satellite Network | C167: Voiceband Reinstatement - FTTN, FTTB | D167: Other services covered by the WAPC | E167: 250 | F167: 250 | H167: =IFERROR(VLOOKUP(D167,'Compliance Summary'!$B$11:$C$15,2,0),"n/a") -> n/a | I167: 0 | J167: Compliant
B168: 8.7 Service management – NBN Co Networks other than the NBN Co Satellite Network | C168: Transition Reversal - FTTN, FTTB, FTTC- | D168: Other services covered by the WAPC | E168: 250 | F168: 250 | H168: =IFERROR(VLOOKUP(D168,'Compliance Summary'!$B$11:$C$15,2,0),"n/a") -> n/a | I168: 0 | J168: Compliant
B169: 8.8 Service management – Smart Places | C169: Smart Places - On Site Maintainance Call Out | D169: Other services covered by the WAPC | E169: 0 | F169: 0 | H169: =IFERROR(VLOOKUP(D169,'Compliance Summary'!$B$11:$C$15,2,0),"n/a") -> n/a | I169: 0 | J169: Compliant
B170: 8.8 Service management – Smart Places | C170: Smart Places - No Fault Found (No Truck Roll Required) | D170: Other services covered by the WAPC | E170: 50 | F170: 50 | H170: =IFERROR(VLOOKUP(D170,'Compliance Summary'!$B$11:$C$15,2,0),"n/a") -> n/a | I170: 0 | J170: Compliant
B171: 8.8 Service management – Smart Places | C171: Smart Places - First Missed Appointment (Trouble Ticket Appointment) | D171: Other services covered by the WAPC | E171: 0 | F171: 0 | H171: =IFERROR(VLOOKUP(D171,'Compliance Summary'!$B$11:$C$15,2,0),"n/a") -> n/a | I171: 0 | J171: Compliant
B172: 8.8 Service management – Smart Places | C172: Smart Places - Subsequent Missed Appointment (Trouble Ticket Appointment) | D172: Other services covered by the WAPC | E172: 0 | F172: 0 | H172: =IFERROR(VLOOKUP(D172,'Compliance Summary'!$B$11:$C$15,2,0),"n/a") -> n/a | I172: 0 | J172: Compliant
B173: 8.8 Service management – Smart Places | C173: Smart Places - Co-ordinated Appointment (Day) | D173: Other services covered by the WAPC | E173: 200 | F173: 200 | H173: =IFERROR(VLOOKUP(D173,'Compliance Summary'!$B$11:$C$15,2,0),"n/a") -> n/a | I173: 0 | J173: Compliant
B174: 8.8 Service management – Smart Places | C174: Smart Places - Co-ordinated Appointment (After Hours) | D174: Other services covered by the WAPC | E174: 300 | F174: 300 | H174: =IFERROR(VLOOKUP(D174,'Compliance Summary'!$B$11:$C$15,2,0),"n/a") -> n/a | I174: 0 | J174: Compliant
B175: 8.8 Service management – Smart Places | C175: Smart Places - Late Cancellation (Smart Places Co-ordinated Appointment) (Day) | D175: Other services covered by the WAPC | E175: 200 | F175: 200 | H175: =IFERROR(VLOOKUP(D175,'Compliance Summary'!$B$11:$C$15,2,0),"n/a") -> n/a | I175: 0 | J175: Compliant
B176: 8.8 Service management – Smart Places | C176: Smart Places - Late Cancellation (Smart Places Co-ordinated Appointment) (After Hours) | D176: Other services covered by the WAPC | E176: 300 | F176: 300 | H176: =IFERROR(VLOOKUP(D176,'Compliance Summary'!$B$11:$C$15,2,0),"n/a") -> n/a | I176: 0 | J176: Compliant
B177: 8.8 Service management – Smart Places | C177: Smart Places - Late Rescheduling (Smart Places Co-ordinated Appointment) (Day) | D177: Other services covered by the WAPC | E177: 200 | F177: 200 | H177: =IFERROR(VLOOKUP(D177,'Compliance Summary'!$B$11:$C$15,2,0),"n/a") -> n/a | I177: 0 | J177: Compliant
B178: 8.8 Service management – Smart Places | C178: Smart Places - Late Rescheduling (Smart Places Co-ordinated Appointment) (After Hours) | D178: Other services covered by the WAPC | E178: 300 | F178: 300 | H178: =IFERROR(VLOOKUP(D178,'Compliance Summary'!$B$11:$C$15,2,0),"n/a") -> n/a | I178: 0 | J178: Compliant
B179: 8.8 Service management – Smart Places | C179: Smart Places - Restoration | D179: Other services covered by the WAPC | E179: 50 | F179: 50 | H179: =IFERROR(VLOOKUP(D179,'Compliance Summary'!$B$11:$C$15,2,0),"n/a") -> n/a | I179: 0 | J179: Compliant
B180: 8.8 Service management – Smart Places | C180: Smart Places - Missed Appointment (Smart Places Co-ordinated Appointment) (Day) | D180: Other services covered by the WAPC | E180: 200 | F180: 200 | H180: =IFERROR(VLOOKUP(D180,'Compliance Summary'!$B$11:$C$15,2,0),"n/a") -> n/a | I180: 0 | J180: Compliant
B181: 8.8 Service management – Smart Places | C181: Smart Places - Missed Appointment (Smart Places Co-ordinated Appointment) (After Hours) | D181: Other services covered by the WAPC | E181: 300 | F181: 300 | H181: =IFERROR(VLOOKUP(D181,'Compliance Summary'!$B$11:$C$15,2,0),"n/a") -> n/a | I181: 0 | J181: Compliant
B182: 8.9 Service management – NBN Co Satellite Network | C182: On Site Maintainance Call Out | D182: Other services covered by the WAPC | E182: 0 | F182: 0 | H182: =IFERROR(VLOOKUP(D182,'Compliance Summary'!$B$11:$C$15,2,0),"n/a") -> n/a | I182: 0 | J182: Compliant
B183: 8.9 Service management – NBN Co Satellite Network | C183: No Fault Found (No Truck Roll Required) | D183: Other services covered by the WAPC | E183: 50 | F183: 50 | H183: =IFERROR(VLOOKUP(D183,'Compliance Summary'!$B$11:$C$15,2,0),"n/a") -> n/a | I183: 0 | J183: Compliant
B184: 8.9 Service management – NBN Co Satellite Network | C184: No Fault Found (Truck Roll Required) (excluding any additional incidental charges which may apply for Limited Access Areas) | D184: Other services covered by the WAPC | E184: 420 | F184: 420 | H184: =IFERROR(VLOOKUP(D184,'Compliance Summary'!$B$11:$C$15,2,0),"n/a") -> n/a | I184: 0 | J184: Compliant
B185: 8.9 Service management – NBN Co Satellite Network | C185: Late Cancellation (Site Visit Required) in Urban Area or Major Rural Area | D185: Other services covered by the WAPC | E185: 150 | F185: 150 | H185: =IFERROR(VLOOKUP(D185,'Compliance Summary'!$B$11:$C$15,2,0),"n/a") -> n/a | I185: 0 | J185: Compliant
B186: 8.9 Service management – NBN Co Satellite Network | C186: Late Cancellation (Site Visit Required) in Minor Rural Area or Remote Area | D186: Other services covered by the WAPC | E186: 200 | F186: 200 | H186: =IFERROR(VLOOKUP(D186,'Compliance Summary'!$B$11:$C$15,2,0),"n/a") -> n/a | I186: 0 | J186: Compliant
B187: 8.9 Service management – NBN Co Satellite Network | C187: Late Cancellation (Site Visit Required) in Isolated Area | D187: Other services covered by the WAPC | E187: 225 | F187: 225 | H187: =IFERROR(VLOOKUP(D187,'Compliance Summary'!$B$11:$C$15,2,0),"n/a") -> n/a | I187: 0 | J187: Compliant
B188: 8.9 Service management – NBN Co Satellite Network | C188: Late Cancellation (Site Visit Required) in Limted Access Area (excluding any additional incidental charges which may apply for Limited Access Areas) | D188: Other services covered by the WAPC | E188: 225 | F188: 225 | H188: =IFERROR(VLOOKUP(D188,'Compliance Summary'!$B$11:$C$15,2,0),"n/a") -> n/a | I188: 0 | J188: Compliant
B189: 8.9 Service management – NBN Co Satellite Network | C189: Missed Appointment (Urban Area or Major Rural Area) | D189: Other services covered by the WAPC | E189: 150 | F189: 150 | H189: =IFERROR(VLOOKUP(D189,'Compliance Summary'!$B$11:$C$15,2,0),"n/a") -> n/a | I189: 0 | J189: Compliant
B190: 8.9 Service management – NBN Co Satellite Network | C190: Missed Appointment (Minor Rural Area or Remote Area) | D190: Other services covered by the WAPC | E190: 200 | F190: 200 | H190: =IFERROR(VLOOKUP(D190,'Compliance Summary'!$B$11:$C$15,2,0),"n/a") -> n/a | I190: 0 | J190: Compliant
B191: 8.9 Service management – NBN Co Satellite Network | C191: Missed Appointment (Isolated Area) | D191: Other services covered by the WAPC | E191: 225 | F191: 225 | H191: =IFERROR(VLOOKUP(D191,'Compliance Summary'!$B$11:$C$15,2,0),"n/a") -> n/a | I191: 0 | J191: Compliant
B192: 8.9 Service management – NBN Co Satellite Network | C192: Missed Appointment (Limited Access Area) (excluding any additional incidental charges which may apply for Limited Access Areas) | D192: Other services covered by the WAPC | E192: 225 | F192: 225 | H192: =IFERROR(VLOOKUP(D192,'Compliance Summary'!$B$11:$C$15,2,0),"n/a") -> n/a | I192: 0 | J192: Compliant
B193: 8.9 Service management – NBN Co Satellite Network | C193: Restoration | D193: Other services covered by the WAPC | E193: 50 | F193: 50 | H193: =IFERROR(VLOOKUP(D193,'Compliance Summary'!$B$11:$C$15,2,0),"n/a") -> n/a | I193: 0 | J193: Compliant
B194: 8.10 Service Transfer-related charges – all NBN Co Networks | C194: Service Transfer | D194: Other services covered by the WAPC | E194: 5 | F194: 5 | H194: =IFERROR(VLOOKUP(D194,'Compliance Summary'!$B$11:$C$15,2,0),"n/a") -> n/a | I194: =IFERROR(F194/E194-1,0) -> 0 | J194: =IF(I194<=H194,"Compliant","Not Compliant") -> Compliant
B195: 8.10 Service Transfer-related charges – all NBN Co Networks | C195: Service Transfer Reversal | D195: Other services covered by the WAPC | E195: 5 | F195: 5 | H195: =IFERROR(VLOOKUP(D195,'Compliance Summary'!$B$11:$C$15,2,0),"n/a") -> n/a | I195: 0 | J195: Compliant
B196: 8.10 Service Transfer-related charges – all NBN Co Networks | C196: Non Infrastructure Transfers (per Service Transfer) | D196: Other services covered by the WAPC | E196: 1.5 | F196: 1.5 | H196: =IFERROR(VLOOKUP(D196,'Compliance Summary'!$B$11:$C$15,2,0),"n/a") -> n/a | I196: 0 | J196: Compliant
B197: 8.11 CVC Class Adjustment – NBN Co Satellite Network | C197: Ordered CVC Class 0 - Up to the allocated usage for CVC Class 1 | D197: Other services covered by the WAPC | E197: 18 | F197: 18 | H197: =IFERROR(VLOOKUP(D197,'Compliance Summary'!$B$11:$C$15,2,0),"n/a") -> n/a | I197: 0 | J197: Compliant
B198: 8.11 CVC Class Adjustment – NBN Co Satellite Network | C198: Ordered CVC Class 0 - Greater than the allocated usage for CVC Class 1 up to the allocated usage for CVC Class 2 | D198: Other services covered by the WAPC | E198: 40 | F198: 40 | H198: =IFERROR(VLOOKUP(D198,'Compliance Summary'!$B$11:$C$15,2,0),"n/a") -> n/a | I198: 0 | J198: Compliant
B199: 8.11 CVC Class Adjustment – NBN Co Satellite Network | C199: Ordered CVC Class 0 - Greater than allocated usage for CVC Class 2 | D199: Other services covered by the WAPC | E199: 150 | F199: 150 | H199: =IFERROR(VLOOKUP(D199,'Compliance Summary'!$B$11:$C$15,2,0),"n/a") -> n/a | I199: 0 | J199: Compliant
B200: 8.11 CVC Class Adjustment – NBN Co Satellite Network | C200: Ordered CVC Class 1 - Up to the allocated usage for CVC Class 2 | D200: Other services covered by the WAPC | E200: 22 | F200: 22 | H200: =IFERROR(VLOOKUP(D200,'Compliance Summary'!$B$11:$C$15,2,0),"n/a") -> n/a | I200: 0 | J200: Compliant
B201: 8.11 CVC Class Adjustment – NBN Co Satellite Network | C201: Ordered CVC Class 1 - Greater than allocated usage for CVC Class 2 | D201: Other services covered by the WAPC | E201: 132 | F201: 132 | H201: =IFERROR(VLOOKUP(D201,'Compliance Summary'!$B$11:$C$15,2,0),"n/a") -> n/a | I201: 0 | J201: Compliant
B202: 8.11 CVC Class Adjustment – NBN Co Satellite Network | C202: Ordered CVC Class 2 - Greater than allocated usage for CVC Class 2 | D202: Other services covered by the WAPC | E202: 110 | F202: 110 | H202: =IFERROR(VLOOKUP(D202,'Compliance Summary'!$B$11:$C$15,2,0),"n/a") -> n/a | I202: 0 | J202: Compliant
... 297 more rows

Sheet WAPC Allowance
B2: WAPC Allowance Calculations
B4: First financial year in which WAPC applies | C4: 2025
B5: Phase of the WAPC | C5: CPI constraint
B7: WAPC Allowance | C7: =D7-1 -> 2024 | D7: =$C$4 -> 2025 | E7: =D7+1 -> 2026 | F7: =E7+1 -> 2027
B9: Forecast December CPI - Table 1: Forecast Table – August 2023 (https://www.rba.gov.au/publications/smp/2023/aug/forecasts.html) | D9: 0.041 | E9: 0.033 | F9: 0.028
B11: X factor | D11: =IF($C$5="CPI Constraint",0,#REF!) -> 0 | E11: =IF($C$5="CPI Constraint",0,#REF!) -> 0 | F11: =IF($C$5="CPI Constraint",0,#REF!) -> 0
B12: Cost pass through adjustment factor | D12: ='WAPC Allowance'!D29 -> 0 | E12: ='WAPC Allowance'!E29 -> 0 | F12: ='WAPC Allowance'!F29 -> 0
B13: Excess adjustment factor (EM) | D13: ='WAPC Allowance'!D41 -> 0 | E13: ='WAPC Allowance'!E41 -> 0 | F13: ='WAPC Allowance'!F41 -> 0
B15: WAPC Allowance | D15: =(1+D9)*(1-D11)*(1+D12)*(1+D13)-1 -> 0.041 | E15: =(1+E9)*(1-E11)*(1+E12)*(1+E13)-1 -> 0.033 | F15: =(1+F9)*(1-F11)*(1+F12)*(1+F13)-1 -> 0.028
B17: Cost pass-through factor | C17: ='WAPC Allowance'!C7 -> 2024 | D17: ='WAPC Allowance'!D7 -> 2025 | E17: ='WAPC Allowance'!E7 -> 2026 | F17: ='WAPC Allowance'!F7 -> 2027
B19: Inputs
B20: Cost pass through in previous year | E20: =D27 -> 0 | F20: =E27 -> 0
B22: Pass-through amount approved by ACCC
B23: CPI | D23: =INDEX('WAPC Allowance'!$D$9:$F$9,,MATCH('WAPC Allowance'!D17,'WAPC Allowance'!$D$7:$F$7,0)) -> 0.041 | E23: =INDEX('WAPC Allowance'!$D$9:$F$9,,MATCH('WAPC Allowance'!E17,'WAPC Allowance'!$D$7:$F$7,0)) -> 0.033 | F23: =INDEX('WAPC Allowance'!$D$9:$F$9,,MATCH('WAPC Allowance'!F17,'WAPC Allowance'!$D$7:$F$7,0)) -> 0.028
B24: X factor | D24: =INDEX('WAPC Allowance'!$D$11:$F$11,,MATCH('WAPC Allowance'!D17,'WAPC Allowance'!$D$7:$F$7,0)) -> 0 | E24: =INDEX('WAPC Allowance'!$D$11:$F$11,,MATCH('WAPC Allowance'!E17,'WAPC Allowance'!$D$7:$F$7,0)) -> 0 | F24: =INDEX('WAPC Allowance'!$D$11:$F$11,,MATCH('WAPC Allowance'!F17,'WAPC Allowance'!$D$7:$F$7,0)) -> 0
B25: Excess adjustment factor | D25: =D41 -> 0 | E25: =E41 -> 0 | F25: =F41 -> 0
B26: Notional Revenue In Prior Year
B27: Pass through in current year | D27: =IFERROR(D22/((1+D23)*(1-D24)*(1+D25)*D26),0) -> 0 | E27: =IFERROR(E22/((1+E23)*(1-E24)*(1+E25)*E26),0) -> 0 | F27: =IFERROR(F22/((1+F23)*(1-F24)*(1+F25)*F26),0) -> 0
B29: Cost pass-through adjustment factor (PT) | D29: =(1+D27)/(1+D20)-1 -> 0 | E29: =(1+E27)/(1+E20)-1 -> 0 | F29: =(1+F27)/(1+F20)-1 -> 0
B31: Excess adjustment | C31: =C17 -> 2024 | D31: 2025 | E31: 2026 | F31: 2027
B33: Inputs
B34: CPI t-2 | F34: =D23 -> 0.041
B35: X factor t-2 | F35: =D24 -> 0
B36: Pass through t-2 | F36: =D29 -> 0
B37: Excess adjustment t-2 | F37: 0
B39: WAP Ratio t-2 | F39: 1
B41: Excess adjustment factor (EM) | F41: =MIN(0,((1+F34)*(1-F35)*(1+F36)*(1+F37))/F39-1) -> 0

Sheet Compliance Summary
B2: WAPC Summary
B4: Applicable Financial Year for Proposed Tariff List | C4: 2025
B6: Applicable Price Controls
C7: Constraint
B8: Weighted Average Price Cap (WAPC) | C8: =HLOOKUP('Compliance Summary'!$C$4,'WAPC Allowance'!$C$7:$F$15,9,0) -> 0.041
B10: Individual Price Control Summary
B11: Entry level TC-4 | C11: ='WAPC Inputs'!$C$7 -> 0.041
B12: Other fixed line and fixed wireless TC-4 | C12: =MAX('WAPC Inputs'!$C$7,5%) -> 0.05
B13: Satellite AVC TC-4 | C13: ='WAPC Inputs'!$C$7 -> 0.041
B14: Satellite CVC TC-4 | C14: 0
B15: Other services covered by the WAPC | C15: n/a
B17: Indicative Tariff Changes (maximum within each Tariff group)
B19: WAPC Change | C19: =SUMPRODUCT('WAPC Inputs'!$F$11:$F$253,'WAPC Inputs'!$E$259:$E$501)/SUMPRODUCT('WAPC Inputs'!$E$11:$E$253,'WAPC Inputs'!$E$259:$E$501)-1 -> 0.04096381433
B21: Indicative Tariff Change
B22: Entry level TC-4 | C22: =_xlfn.MAXIFS('WAPC Inputs'!$I$11:$I$253,'WAPC Inputs'!$D$11:$D$253,'Compliance Summary'!$B22) -> 0.04073383085
B23: Other fixed line and fixed wireless TC-4 | C23: =_xlfn.MAXIFS('WAPC Inputs'!$I$11:$I$253,'WAPC Inputs'!$D$11:$D$253,'Compliance Summary'!$B23) -> 0.04851330203
B24: Satellite AVC TC-4 | C24: =_xlfn.MAXIFS('WAPC Inputs'!$I$11:$I$253,'WAPC Inputs'!$D$11:$D$253,'Compliance Summary'!$B24) -> 0
B25: Satellite CVC TC-4 | C25: =_xlfn.MAXIFS('WAPC Inputs'!$I$11:$I$253,'WAPC Inputs'!$D$11:$D$253,'Compliance Summary'!$B25) -> 0
B26: Other services covered by the WAPC | C26: =_xlfn.MAXIFS('WAPC Inputs'!$I$11:$I$253,'WAPC Inputs'!$D$11:$D$253,'Compliance Summary'!$B26) -> 0
B28: Compliance check
B30: Weighted Average Price Cap (WAPC) | C30: =IF(C19<=C8,"Compliant","Not Compliant") -> Compliant
B32: Individual Price Controls
B33: Entry level TC-4 | C33: =IF(C22<=C11,"Compliant","Not Compliant") -> Compliant
B34: Other fixed line and fixed wireless TC-4 | C34: =IF(C23<=C12,"Compliant","Not Compliant") -> Compliant
B35: Satellite AVC TC-4 | C35: Compliant
B36: Satellite CVC TC-4 | C36: Compliant
B37: Other services covered by the WAPC | C37: Compliant
